fUSD/lending_fUSD_20240715
["ID","MTS","AMOUNT","RATE_DAILY","PERIOD"]
[332245322,1721070646426,-500.0,0.00013972,2]
[332245323,1721070646435,-500.0,0.00013972,2]
[332245324,1721070646445,-1499.51,0.00013972,2]
[332245325,1721070646454,-500.0,0.00013972,2]
[332245326,1721070646464,-500.0,0.00013972,2]
[332245327,1721070646473,-1134.53,0.00013972,2]
[332245328,1721070646483,-500.0,0.00013972,2]
[332245329,1721070646493,-500.0,0.00013972,2]
[332245330,1721070646502,-500.0,0.00013972,2]
[332245331,1721070646512,-534.31,0.00013972,2]
[332245332,1721070646521,-500.0,0.00013972,2]
[332245333,1721070646530,-500.0,0.00013972,2]
[332245334,1721070646540,-500.0,0.00013972,2]
[332245335,1721070646550,-1000.0,0.00013973,5]
[332245336,1721070646559,-2000.0,0.00013974,2]
[332245337,1721070646569,-200.0,0.00013974,2]
[332245338,1721070646579,-200.0,0.00013974,2]
[332245339,1721070646589,-200.0,0.00013976,2]
[332245340,1721070646598,-176.99469497,0.00013976,2]
[332245341,1721070646608,-20967.6846999,0.0001398,3]
[332245342,1721070646618,-15992.1693415,0.0001398,3]
[332245343,1721070646627,-20967.6846999,0.00013989,3]
[332245344,1721070646637,-15992.1693415,0.00013989,3]
[332245345,1721070646646,-634.0,0.00013989,2]
[332245346,1721070646656,-41935.3693998,0.0001399,3]
[332245347,1721070646666,-101130.32923764,0.0001399,3]
[332245348,1721070646682,-255.99257949,0.0001399,3]
[332245349,1721070701470,221.04,0.00018849,30]
[332245350,1721071281935,202.62,0.00018849,30]
[332245365,1721071824289,185.73,0.00018849,30]
[332245367,1721071833983,-826.29867666,0.00010643,2]
[332245368,1721071833995,-190.19132334,0.00010643,2]
[332245369,1721071834004,-141.77158556,0.00010959,2]
[332245370,1721071834016,-724.53841444,0.00010959,2]
[332245371,1721071834025,-150.0,0.00011097,2]
[332245372,1721071834034,-300.0,0.00011097,2]
[332245373,1721071834044,-3855.96008094,0.00011098,2]
[332245374,1721071834054,-443.85598899,0.00011098,2]
[332245375,1721071834063,-400.0,0.00011098,2]
[332245376,1721071834072,-1714.75837256,0.00011098,2]
[332245377,1721071834082,-413.67982935,0.00011098,2]
[332245378,1721071834091,-310.53022676,0.00011098,2]
[332245379,1721071834101,-155.0,0.00011098,2]
[332245380,1721071834110,-2077.86533522,0.00011098,2]
[332245381,1721071834120,-167.83449486,0.00011098,2]
[332245382,1721071834130,-680.69368405,0.00011098,2]
[332245383,1721071834139,-265.68910876,0.00011098,2]
[332245384,1721071834149,-2204.10519174,0.00011098,2]
[332245385,1721071834159,-5124.02108386,0.00011098,2]
[332245386,1721071834169,-652.15802817,0.00011098,2]
[332245387,1721071834181,-218.4212033,0.00011098,2]
[332245388,1721071834190,-425.26598198,0.00011098,2]
[332245389,1721071834199,-347.22717478,0.00011098,2]
[332245390,1721071834209,-316.20472676,0.00011098,2]
[332245391,1721071834219,-305.87724342,0.00011098,2]
[332245392,1721071834229,-202.96927408,0.00011098,2]
[332245393,1721071834240,-164.02052985,0.00011098,2]
[332245394,1721071834249,-476.27705513,0.00011098,2]
[332245395,1721071834260,-600.0,0.00011098,2]
[332245396,1721071834269,-1318.5298823,0.00011098,2]
[332245397,1721071834279,-157.11482821,0.00011197,2]
[332245398,1721071834289,-10530.36397608,0.00011199,2]
[332245399,1721071834298,-757.19605409,0.00011199,2]
[332245400,1721071834308,-329.2551663,0.00011199,2]
[332245401,1721071834317,-1904.31747652,0.00011199,2]
[332245402,1721071834327,-28862.77701311,0.000118,2]
[332245403,1721071834337,-587.12294519,0.00011825,2]
[332245404,1721071834349,-412.61335126,0.00011825,2]
[332245407,1721071834368,-631.76505973,0.00011825,2]
[332245409,1721071834377,-150.0,0.00012151,2]
[332245411,1721071834387,-420.0,0.00012193,2]
[332245412,1721071834396,-276.51444218,0.00012273,2]
[332245413,1721071834406,-159.30941425,0.00012302,2]
[332245414,1721071834415,-250.0,0.00012532,2]
[332245415,1721071834425,-499.99,0.00012532,2]
[332245416,1721071834440,-797.4802411,0.00012547,2]
[332245417,1721071834451,-641.43342479,0.00012547,2]
[332245418,1721071834467,-716.18874666,0.00012547,2]
[332245419,1721071834479,-21744.89758745,0.00012547,2]
[332245420,1721071834489,-371.18,0.00012547,2]
[332245421,1721071834498,-160.0,0.00012569,2]
[332245422,1721071834509,-1000.0,0.00012572,2]
[332245423,1721071834518,-250.0,0.00012582,2]
[332245424,1721071834528,-167.57,0.0001271,2]
[332245425,1721071834538,-2775.83779055,0.00012736,2]
[332245426,1721071834550,-2564.27809117,0.00012736,2]
[332245427,1721071834561,-15369.88528507,0.00012736,2]
[332245428,1721071834570,-193.09,0.00012788,2]
[332245429,1721071834580,-1016.49,0.00012907,2]
[332245430,1721071834589,-1244.27823597,0.00013,2]
[332245431,1721071834598,-600.30000237,0.00013,2]
[332245432,1721071834607,-87.40463997,0.0001305,2]
[332245433,1721071834638,-619.14994573,0.0001305,2]
[332245434,1721071834651,-505.38615579,0.0001305,2]
[332245435,1721071834665,-1865.39335247,0.0001305,2]
[332245436,1721071834676,-800.0,0.000131,4]
[332245437,1721071834697,-364.32608726,0.00013128,2]
[332245438,1721071834708,-127.58665526,0.00013128,2]
[332245439,1721071834720,-37.40950813,0.00013128,2]
[332245440,1721071834730,-796.38842503,0.0001316,2]
[332245441,1721071834743,-318.86689986,0.0001316,2]
[332245464,1721071839698,-3581.35811462,0.0001316,2]
[332245465,1721071840023,-1095.52433501,0.0001316,2]
[332245466,1721071840035,-15638.86222548,0.0001316,2]
[332245467,1721071840045,-1324.79281417,0.000132,2]
[332245468,1721071840056,-753.33755074,0.000132,2]
[332245493,1721071840465,-1272.66427004,0.000132,2]
[332245494,1721071840477,-2219.60164,0.000132,2]
[332245495,1721071840488,-1185.80818515,0.000132,2]
[332245496,1721071840500,-3859.12799228,0.000132,2]
[332245497,1721071840513,-260.84865631,0.000132,2]
[332245498,1721071840529,-505.2624392,0.000132,2]
[332245499,1721071840543,-1284.973774,0.000132,2]
[332245500,1721071840555,-872.08,0.000132,2]
[332245501,1721071840588,-83630.47987828,0.000132,2]
[332245502,1721071840913,-539.06283141,0.000132,2]
[332245539,1721071843440,-276.51444218,0.00011199,2]
[332245540,1721071843460,-1150.69420765,0.000132,2]
[332245541,1721071843476,-1424.4705241,0.000132,2]
[332245542,1721071843583,-1298.98252969,0.000132,2]
[332245543,1721071843632,-4304.832246,0.000132,2]
[332245544,1721071843644,-500.0,0.000132,2]
[332245545,1721071843655,-4526.46988004,0.000132,2]
[332245546,1721071843673,-15392.39694035,0.000132,2]
[332245547,1721071843685,-2992.66511614,0.000132,2]
[332245548,1721071843697,-4765.843978,0.000132,2]
[332245578,1721071846250,-4461.30150161,0.000132,2]
[332245582,1721071846262,-8021.15857371,0.000132,2]
[332245584,1721071846273,-1250.0945842,0.000132,2]
[332245585,1721071846284,-2128.84910156,0.000132,2]
[332245586,1721071846295,-2121.99962488,0.000132,2]
[332245587,1721071846306,-1530.01147596,0.000132,2]
[332245588,1721071846317,-1595.5,0.000132,2]
[332245589,1721071846328,-855.49999401,0.000132,2]
[332245590,1721071846353,-1502.98278456,0.000132,2]
[332245591,1721071846364,-396.05722398,0.000132,2]
[332245592,1721071846517,-1400.55359634,0.000132,2]
[332245593,1721071846528,-15031.09902767,0.000132,2]
[332245594,1721071846544,-46837.16879561,0.000132,2]
[332245595,1721071846556,-396.81141428,0.000132,2]
[332245611,1721071946213,715.78026588,0.00027,120]
[332246037,1721072398079,164.73,9.793e-05,2]
[332246038,1721072460287,525.30658377,9.793e-05,2]
[332246039,1721072463782,210.43759767,9.793e-05,2]
[332246040,1721072482551,18936.73581856,9.793e-05,2]
[332246041,1721072482577,28427.50240395,9.793e-05,2]
[332246042,1721072769300,170.25,0.00018849,30]
[332246055,1721073033212,-306.29657116,0.00010255,2]
[332246056,1721073033225,-693.05342884,0.00010255,2]
[332246057,1721073033235,-884.04,0.00010959,2]
[332246058,1721073033245,-122.58258599,0.00011068,2]
[332246059,1721073033319,-27.41741401,0.00011068,2]
[332246060,1721073033328,-333.28258299,0.00011097,2]
[332246061,1721073033425,-328.21590955,0.00011097,2]
[332246062,1721073033478,-3913.55995196,0.00011097,2]
[332246071,1721073038861,-472.48278568,0.00011097,2]
[332246079,1721073040218,-592.57472115,0.00011097,2]
[332246080,1721073040227,-150.0,0.00011097,2]
[332246081,1721073040236,-1400.55359634,0.00011098,7]
[332246082,1721073040246,-953.42365127,0.00011098,2]
[332246083,1721073040256,-1036.52241211,0.00011098,2]
[332246084,1721073040266,-1095.27649717,0.00011098,2]
[332246085,1721073040275,-193.83550993,0.00011098,2]
[332246086,1721073040286,-155.0,0.00011098,2]
[332246087,1721073040296,-210.40265388,0.00011098,2]
[332246088,1721073040306,-527.80162773,0.00011098,2]
[332246089,1721073040316,-519.32016709,0.00011098,2]
[332246090,1721073040325,-627.78159693,0.00011098,2]
[332246091,1721073040334,-685.81454762,0.00011098,2]
[332246092,1721073040344,-616.33184579,0.00011098,2]
[332246093,1721073040354,-286.6495415,0.00011098,2]
[332246094,1721073040363,-1254.63523304,0.00011098,2]
[332246095,1721073040372,-273.05483461,0.00011098,2]
[332246096,1721073040382,-176.13461349,0.00011098,2]
[332246097,1721073040391,-155.0,0.00011098,2]
[332246099,1721073040400,-253.35800237,0.00011098,2]
[332246101,1721073040410,-391.05552232,0.00011098,2]
[332246102,1721073040420,-155.29460536,0.00011098,2]
[332246103,1721073040429,-298.97039204,0.00011098,2]
[332246104,1721073040439,-242.05297461,0.00011098,2]
[332246105,1721073040449,-155.0,0.00011098,2]
[332246106,1721073040458,-155.0,0.00011098,2]
[332246107,1721073040467,-155.16151155,0.00011098,2]
[332246108,1721073040477,-524.91121126,0.00011098,2]
[332246109,1721073040487,-206.48733416,0.00011098,2]
[332246110,1721073040496,-155.0,0.00011098,2]
[332246111,1721073040506,-453.09541711,0.00011098,2]
[332246112,1721073040516,-155.0,0.00011098,2]
[332246113,1721073040525,-492.55741441,0.00011098,2]
[332246114,1721073040536,-946.27964523,0.00011098,2]
[332246115,1721073040546,-155.0,0.00011098,2]
[332246116,1721073040555,-155.33944343,0.00011098,2]
[332246117,1721073040565,-155.34702634,0.00011098,2]
[332246118,1721073040575,-1500.0,0.00011098,2]
[332246119,1721073040584,-155.18787774,0.00011098,2]
[332246120,1721073040593,-300.70312877,0.00011197,2]
[332246121,1721073040603,-220.35584075,0.00011197,2]
[332246122,1721073040612,-211.67761017,0.00011197,2]
[332246123,1721073040622,-455.31,0.00011199,2]
[332246124,1721073040632,-155.0,0.00011199,2]
[332246125,1721073040641,-155.54679538,0.00011199,2]
[332246126,1721073040651,-499.99,0.0001187,2]
[332246127,1721073040661,-23900.0,0.0001201,2]
[332246128,1721073040671,-150.99,0.0001201,2]
[332246129,1721073040681,-250.0,0.00012018,2]
[332246130,1721073040690,-178.94,0.00012127,2]
[332246131,1721073040700,-1027.37,0.00012145,2]
[332246132,1721073040710,-250.0,0.00012207,2]
[332246133,1721073040719,-167.57,0.00012228,2]
[332246134,1721073040728,-156.0,0.00012273,2]
[332246135,1721073040738,-186.91,0.00012273,2]
[332246136,1721073040748,-246.53949848,0.00012302,2]
[332246137,1721073040757,-205.64995214,0.00012314,2]
[332246138,1721073040767,-999.35,0.00012518,2]
[332246139,1721073040777,-1000.0,0.00012544,2]
[332246140,1721073040787,-1000.0,0.00012582,2]
[332246141,1721073040797,-22073.24504756,0.00012583,2]
[332246142,1721073040808,-2984.98693968,0.00012592,2]
[332246143,1721073040817,-1250.0,0.00013,2]
[332246144,1721073040826,-357.16202595,0.00013029,2]
[332246145,1721073040835,-7141.3753,0.000131,2]
[332246146,1721073040848,-2625.0287,0.000131,2]
[332246147,1721073040858,-800.0,0.000131,4]
[332246148,1721073040868,-3000.0,0.000132,2]
[332246149,1721073040877,-1600.0,0.000132,4]
[332246150,1721073040888,-3971.82363166,0.00013251,2]
[332246151,1721073040898,-2483.4822,0.000133,2]
[332246152,1721073040908,-2400.0,0.000133,4]
[332246153,1721073040917,-182.969527,0.00013396,2]
[332246154,1721073040928,-180.952571,0.00013396,2]
[332246155,1721073040939,-1033.424905,0.00013396,2]
[332246156,1721073040949,-266.800636,0.00013396,2]
[332246157,1721073040958,-973.012755,0.00013396,2]
[332246158,1721073040968,-165.04736,0.00013396,2]
[332246159,1721073040979,-171.080262,0.00013396,2]
[332246160,1721073040988,-244.548816,0.00013396,2]
[332246161,1721073040998,-174.522798,0.00013396,2]
[332246162,1721073041007,-176.931597,0.00013396,2]
[332246163,1721073041017,-3505.662,0.000134,2]
[332246164,1721073041027,-3300.0,0.000134,4]
[332246165,1721073041040,-521.01537596,0.00013472,2]
[332246166,1721073041049,-4100.0,0.000135,4]
[332246167,1721073041058,-715.70081706,0.00013516,2]
[332246168,1721073041068,-155.47150963,0.00013516,2]
[332246169,1721073041078,-1033.424905,0.00013563,2]
[332246170,1721073041087,-973.012755,0.00013563,2]
[332246171,1721073041097,-9857.10795239,0.0001358,2]
[332246172,1721073041107,-14413.3648,0.00013598,2]
[332246173,1721073041116,-5010.2399,0.00013598,2]
[332246174,1721073041125,-197.1681,0.00013598,2]
[332246175,1721073041135,-466.9961,0.000136,2]
[332246176,1721073041145,-13678.8528,0.000136,2]
[332246177,1721073041155,-800.0,0.000136,4]
[332246178,1721073041165,-180.952571,0.00013619,2]
[332246179,1721073041175,-500.0,0.00013698,2]
[332246180,1721073041185,-500.0,0.00013698,2]
[332246181,1721073041195,-500.0,0.00013698,2]
[332246182,1721073041205,-505.86786128,0.00013698,2]
[332246183,1721073041214,-500.0,0.00013698,2]
[332246184,1721073041224,-500.0,0.00013698,2]
[332246185,1721073041234,-500.0,0.00013698,2]
[332246186,1721073041243,-500.0,0.00013698,2]
[332246187,1721073041252,-500.0,0.00013698,2]
[332246188,1721073041261,-500.0,0.00013698,2]
[332246189,1721073041271,-500.0,0.00013698,2]
[332246190,1721073041282,-500.0,0.00013698,2]
[332246191,1721073041291,-500.0,0.00013698,2]
[332246192,1721073041300,-500.0,0.00013698,2]
[332246193,1721073041309,-500.0,0.00013698,2]
[332246194,1721073041319,-500.0,0.00013698,2]
[332246195,1721073041329,-500.0,0.00013698,2]
[332246196,1721073041338,-500.0,0.00013698,2]
[332246197,1721073041348,-500.0,0.00013698,2]
[332246198,1721073041358,-500.0,0.00013698,2]
[332246199,1721073041367,-500.0,0.00013698,2]
[332246200,1721073041377,-563.47,0.00013698,2]
[332246201,1721073041387,-832.14,0.00013698,2]
[332246202,1721073041397,-500.0,0.00013698,2]
[332246203,1721073041406,-513.08472773,0.00013698,2]
[332246204,1721073041415,-500.0,0.00013698,2]
[332246205,1721073041425,-508.91673713,0.00013698,2]
[332246206,1721073041434,-500.0,0.00013698,2]
[332246207,1721073041444,-500.0,0.00013698,2]
[332246208,1721073041453,-500.0,0.00013698,2]
[332246209,1721073041463,-500.0,0.00013698,2]
[332246210,1721073041472,-185.52123315,0.00013698,2]
[332246211,1721073041481,-500.0,0.00013698,2]
[332246212,1721073041491,-500.0,0.00013698,2]
[332246213,1721073041500,-500.0,0.00013698,2]
[332246214,1721073041509,-500.0,0.00013698,2]
[332246215,1721073041519,-205.85126074,0.00013698,2]
[332246216,1721073041530,-500.0,0.00013698,2]
[332246217,1721073041539,-500.0,0.00013698,2]
[332246218,1721073041549,-500.0,0.00013698,2]
[332246219,1721073041558,-629.93,0.00013699,2]
[332246220,1721073041567,-1199.82,0.00013699,2]
[332246221,1721073041577,-273.7,0.00013699,2]
[332246222,1721073041586,-6132.4036,0.000137,2]
[332246223,1721073041595,-2087.5524,0.000137,2]
[332246224,1721073041605,-3768.5956,0.000137,2]
[332246225,1721073041614,-404.1856,0.000137,2]
[332246226,1721073041624,-224.89533838,0.000137,2]
[332246227,1721073041633,-800.0,0.000137,5]
[332246228,1721073041643,-322.15409797,0.000137,2]
[332246229,1721073041653,-3268.9447,0.00013708,2]
[332246230,1721073041662,-1033.424905,0.00013731,2]
[332246231,1721073041672,-973.012755,0.00013731,2]
[332246232,1721073041681,-165.04736,0.00013731,2]
[332246233,1721073041690,-176.931597,0.00013731,2]
[332246234,1721073041699,-155.0,0.00013736,2]
[332246235,1721073041709,-155.0,0.00013736,2]
[332246236,1721073041718,-500.0,0.00013753,2]
[332246237,1721073041728,-217.07,0.00013753,2]
[332246238,1721073041736,-500.0,0.00013753,2]
[332246239,1721073041746,-500.0,0.00013753,2]
[332246240,1721073041755,-500.0,0.00013753,2]
[332246241,1721073041764,-500.0,0.00013753,2]
[332246242,1721073041774,-500.0,0.00013753,2]
[332246243,1721073041785,-500.0,0.00013753,2]
[332246244,1721073041794,-500.0,0.00013753,2]
[332246245,1721073041804,-500.0,0.00013753,2]
[332246246,1721073041813,-500.0,0.00013753,2]
[332246247,1721073041822,-500.0,0.00013753,2]
[332246248,1721073041832,-500.0,0.00013753,2]
[332246249,1721073041844,-500.0,0.00013753,2]
[332246250,1721073041855,-500.0,0.00013753,2]
[332246251,1721073041865,-500.0,0.00013753,2]
[332246252,1721073041875,-500.0,0.00013753,2]
[332246253,1721073041886,-500.0,0.00013753,2]
[332246254,1721073041896,-500.0,0.00013753,2]
[332246255,1721073041905,-832.14,0.00013753,2]
[332246256,1721073041915,-500.0,0.00013753,2]
[332246257,1721073041926,-500.0,0.00013753,2]
[332246258,1721073041935,-500.0,0.00013753,2]
[332246259,1721073041946,-500.0,0.00013753,2]
[332246260,1721073041955,-500.0,0.00013753,2]
[332246261,1721073041965,-500.0,0.00013753,2]
[332246262,1721073041974,-500.0,0.00013753,2]
[332246263,1721073041984,-500.0,0.00013753,2]
[332246264,1721073041993,-500.0,0.00013753,2]
[332246265,1721073042002,-500.0,0.00013753,2]
[332246266,1721073042013,-500.0,0.00013753,2]
[332246267,1721073042022,-500.0,0.00013753,2]
[332246268,1721073042033,-308.45407443,0.00013759,2]
[332246269,1721073042043,-196.73465378,0.0001379,2]
[332246270,1721073042052,-2416.64038607,0.00013797,2]
[332246271,1721073042061,-500.0,0.00013798,2]
[332246272,1721073042070,-500.0,0.00013798,2]
[332246273,1721073042079,-500.0,0.00013799,2]
[332246274,1721073042089,-500.0,0.00013799,2]
[332246275,1721073042098,-500.0,0.00013799,2]
[332246276,1721073042108,-500.0,0.00013799,2]
[332246277,1721073042117,-500.0,0.00013799,2]
[332246278,1721073042127,-291.91,0.00013799,2]
[332246279,1721073042136,-500.0,0.00013799,2]
[332246280,1721073042146,-1333.22,0.00013799,2]
[332246281,1721073042154,-500.0,0.00013799,2]
[332246282,1721073042165,-515.41051228,0.00013799,2]
[332246283,1721073042174,-513.25537272,0.00013799,2]
[332246284,1721073042183,-500.0,0.00013799,2]
[332246285,1721073042193,-500.0,0.00013799,2]
[332246286,1721073042203,-500.0,0.00013799,2]
[332246287,1721073042212,-442.35,0.00013799,2]
[332246288,1721073042221,-1281.94,0.00013799,2]
[332246289,1721073042231,-500.0,0.00013799,2]
[332246290,1721073042240,-500.0,0.00013799,2]
[332246291,1721073042249,-524.75,0.00013799,2]
[332246292,1721073042259,-207.20557696,0.00013799,2]
[332246293,1721073042268,-896134.0,0.000138,2]
[332246294,1721073042279,-800.0,0.000138,5]
[332246295,1721073042289,-264634.456821,0.000138,3]
[332246296,1721073042298,-429.15592799,0.00013802,2]
[332246297,1721073042307,-500.0,0.00013808,2]
[332246298,1721073042316,-500.0,0.00013808,2]
[332246299,1721073042325,-500.0,0.00013808,2]
[332246300,1721073042335,-500.0,0.00013808,2]
[332246301,1721073042345,-500.0,0.00013808,2]
[332246302,1721073042354,-500.0,0.00013808,2]
[332246303,1721073042364,-500.0,0.00013808,2]
[332246304,1721073042374,-500.0,0.00013808,2]
[332246305,1721073042383,-500.0,0.00013808,2]
[332246306,1721073042393,-500.0,0.00013808,2]
[332246307,1721073042402,-500.0,0.00013808,2]
[332246308,1721073042412,-500.0,0.00013808,2]
[332246309,1721073042422,-500.0,0.00013808,2]
[332246310,1721073042431,-500.0,0.00013808,2]
[332246311,1721073042441,-500.0,0.00013808,2]
[332246312,1721073042451,-500.0,0.00013808,2]
[332246313,1721073042461,-500.0,0.00013808,2]
[332246314,1721073042470,-500.0,0.00013808,2]
[332246315,1721073042480,-832.14,0.00013808,2]
[332246316,1721073042490,-500.0,0.00013808,2]
[332246317,1721073042500,-500.0,0.00013808,2]
[332246318,1721073042509,-500.0,0.00013808,2]
[332246319,1721073042518,-500.0,0.00013808,2]
[332246320,1721073042529,-500.0,0.00013808,2]
[332246321,1721073042543,-500.0,0.00013808,2]
[332246322,1721073042553,-542.99,0.00013808,2]
[332246323,1721073042563,-500.0,0.00013808,2]
[332246324,1721073042572,-500.0,0.00013808,2]
[332246325,1721073042581,-500.0,0.00013808,2]
[332246326,1721073042590,-224.89533837,0.00013817,2]
[332246327,1721073042600,-180.952571,0.00013843,2]
[332246328,1721073042609,-155.0,0.00013849,2]
[332246329,1721073042619,-500.0,0.00013853,2]
[332246330,1721073042629,-500.0,0.00013854,2]
[332246331,1721073042640,-500.0,0.00013854,2]
[332246332,1721073042650,-500.0,0.00013854,2]
[332246333,1721073042659,-500.0,0.00013854,2]
[332246334,1721073042668,-500.0,0.00013854,2]
[332246335,1721073042678,-500.0,0.00013854,2]
[332246336,1721073042687,-1333.22,0.00013854,2]
[332246337,1721073042697,-500.0,0.00013854,2]
[332246338,1721073042706,-500.0,0.00013854,2]
[332246339,1721073042716,-244.21,0.00013854,2]
[332246340,1721073042726,-1281.94,0.00013854,2]
[332246341,1721073042736,-500.0,0.00013854,2]
[332246342,1721073042746,-500.0,0.00013854,2]
[332246343,1721073042756,-524.75,0.00013854,2]
[332246344,1721073042766,-500.0,0.0001386,2]
[332246345,1721073042775,-500.0,0.0001386,2]
[332246346,1721073042786,-577.02256183,0.0001386,2]
[332246347,1721073042795,-500.0,0.0001386,2]
[332246348,1721073042805,-500.0,0.0001386,2]
[332246349,1721073042814,-500.0,0.0001386,2]
[332246350,1721073042824,-500.0,0.0001386,2]
[332246351,1721073042834,-500.0,0.0001386,2]
[332246352,1721073042845,-500.0,0.0001386,2]
[332246353,1721073042856,-530.34386721,0.0001386,2]
[332246354,1721073042866,-500.0,0.0001386,2]
[332246355,1721073042875,-500.0,0.0001386,2]
[332246356,1721073042886,-500.0,0.0001386,2]
[332246357,1721073042895,-500.0,0.0001386,2]
[332246358,1721073042905,-504.31180441,0.0001386,2]
[332246359,1721073042914,-500.0,0.00013863,2]
[332246360,1721073042925,-500.0,0.00013863,2]
[332246361,1721073042935,-500.0,0.00013863,2]
[332246362,1721073042944,-500.0,0.00013863,2]
[332246363,1721073042953,-500.0,0.00013863,2]
[332246364,1721073042963,-500.0,0.00013863,2]
[332246365,1721073042973,-500.0,0.00013863,2]
[332246366,1721073042982,-500.0,0.00013863,2]
[332246367,1721073042991,-500.0,0.00013863,2]
[332246368,1721073043000,-500.0,0.00013863,2]
[332246369,1721073043010,-559.54272152,0.00013863,2]
[332246370,1721073043019,-500.0,0.00013863,2]
[332246371,1721073043030,-500.0,0.00013863,2]
[332246372,1721073043043,-500.0,0.00013863,2]
[332246373,1721073043051,-500.0,0.00013863,2]
[332246374,1721073043061,-500.0,0.00013863,2]
[332246375,1721073043070,-500.0,0.00013863,2]
[332246376,1721073043079,-500.0,0.00013863,2]
[332246377,1721073043089,-832.14,0.00013863,2]
[332246378,1721073043098,-500.0,0.00013863,2]
[332246379,1721073043107,-500.0,0.00013863,2]
[332246380,1721073043116,-500.0,0.00013863,2]
[332246381,1721073043125,-500.0,0.00013863,2]
[332246382,1721073043134,-500.0,0.00013863,2]
[332246383,1721073043143,-500.0,0.00013863,2]
[332246384,1721073043152,-500.0,0.00013863,2]
[332246385,1721073043162,-278.95504416,0.00013863,2]
[332246386,1721073043171,-514.064,0.00013869,2]
[332246387,1721073043180,-152.0,0.00013869,2]
[332246388,1721073043190,-152.0,0.00013869,2]
[332246389,1721073043199,-151.299,0.00013869,2]
[332246390,1721073043208,-209.076,0.00013869,2]
[332246391,1721073043217,-154.668,0.00013869,2]
[332246392,1721073043227,-58842.00645986,0.0001388,2]
[332246393,1721073043237,-500.0,0.00013887,2]
[332246394,1721073043247,-500.0,0.00013888,2]
[332246395,1721073043257,-500.0,0.00013888,2]
[332246396,1721073043266,-155.0,0.00013889,2]
[332246397,1721073043275,-263.66714754,0.00013889,2]
[332246399,1721073043287,-1033.424905,0.00013898,2]
[332246400,1721073043296,-973.012755,0.00013898,2]
[332246404,1721073043305,-1000.0,0.000139,2]
[332246407,1721073043315,-179.25993919,0.000139,2]
[332246410,1721073043324,-151.0,0.000139,2]
[332246413,1721073043333,-151.0,0.000139,2]
[332246416,1721073043343,-240.390999,0.000139,2]
[332246420,1721073043352,-240.390999,0.000139,2]
[332246422,1721073043362,-151.0,0.000139,2]
[332246424,1721073043371,-151.0,0.000139,2]
[332246425,1721073043380,-151.0,0.000139,2]
[332246427,1721073043390,-1267.746814,0.000139,2]
[332246429,1721073043399,-1267.746814,0.000139,2]
[332246432,1721073043408,-151.52449,0.000139,2]
[332246434,1721073043418,-151.0,0.000139,2]
[332246437,1721073043427,-151.0,0.000139,2]
[332246439,1721073043437,-162.290415,0.000139,2]
[332246442,1721073043446,-162.290415,0.000139,2]
[332246445,1721073043456,-151.0,0.000139,2]
[332246447,1721073043465,-151.0,0.000139,2]
[332246448,1721073043474,-800.0,0.000139,5]
[332246449,1721073043483,-2600.43035415,0.000139,3]
[332246450,1721073043500,-2065.0,0.000139,3]
[332246451,1721073043511,-62684.30311035,0.000139,3]
[332246453,1721073043522,-529.72984652,0.000139,3]
[332246455,1721073043536,-259.86726451,0.000139,3]
[332246456,1721073043551,-318.20514663,0.000139,3]